[Event "Titled Tuesday Blitz July 11 Early 2023"]
[White "Orlov, Georgi"]
[Black "Kashefi, Amir Hosein"]
[WhiteFideId "2011271"]
[BlackFideId "12557935"]
[WhiteElo "2547"]
[BlackElo "2424"]
[Result "1-0"]
[Round "9"]
[TimeControl "180+2"]
[Date "2023.07.11"]
[WhiteClock "0:00:24"]
[BlackClock "0:00:03"]
[Board "92"]

1. d4 {[%clk 0:03:00]}  d5 {[%clk 0:03:00]} 2. Nf3 {[%clk 0:03:01]}  c6 {[%clk 0:03:01]} 3. c4 {[%clk 0:03:01]}  Nf6 {[%clk 0:03:02]} 4. Nc3 {[%clk 0:03:00]}  Bf5 {[%clk 0:03:02]} 5. cxd5 {[%clk 0:02:59]}  cxd5 {[%clk 0:03:02]} 6. Qb3 {[%clk 0:02:59]}  Qb6 {[%clk 0:03:03]} 7. Nxd5 {[%clk 0:02:58]}  Nxd5 {[%clk 0:03:04]} 8. Qxd5 {[%clk 0:02:58]}  e6 {[%clk 0:03:05]} 9. Qb3 {[%clk 0:02:58]}  Qxb3 {[%clk 0:03:03]} 10. axb3 {[%clk 0:02:57]}  Nc6 {[%clk 0:02:56]} 11. e3 {[%clk 0:02:57]}  Bc2 {[%clk 0:02:56]} 12. Bc4 {[%clk 0:02:53]}  a6 {[%clk 0:02:51]} 13. Bd2 {[%clk 0:02:49]}  Rc8 {[%clk 0:02:43]} 14. O-O {[%clk 0:02:36]}  Be7 {[%clk 0:02:34]} 15. Rfc1 {[%clk 0:02:35]}  Be4 {[%clk 0:02:34]} 16. Bc3 {[%clk 0:02:22]}  Bxf3 {[%clk 0:02:28]} 17. gxf3 {[%clk 0:02:22]}  O-O {[%clk 0:02:29]} 18. Bd3 {[%clk 0:02:14]}  Rfd8 {[%clk 0:02:27]} 19. f4 {[%clk 0:02:10]}  Bf6 {[%clk 0:02:26]} 20. Be4 {[%clk 0:02:09]}  Rd7 {[%clk 0:02:11]} 21. Ba5 {[%clk 0:02:02]}  g6 {[%clk 0:01:56]} 22. Bb6 {[%clk 0:02:00]}  Ne7 {[%clk 0:01:53]} 23. Ba5 {[%clk 0:01:51]}  Rxc1+ {[%clk 0:01:44]} 24. Rxc1 {[%clk 0:01:51]}  Nd5 {[%clk 0:01:44]} 25. Rc8+ {[%clk 0:01:41]}  Kg7 {[%clk 0:01:42]} 26. Kg2 {[%clk 0:01:33]}  h5 {[%clk 0:01:40]} 27. Kf3 {[%clk 0:01:32]}  b6 {[%clk 0:01:15]} 28. Bd2 {[%clk 0:01:31]}  a5 {[%clk 0:01:16]} 29. Rc6 {[%clk 0:01:26]}  Bd8 {[%clk 0:01:13]} 30. Bxd5 {[%clk 0:01:12]}  Rxd5 {[%clk 0:00:46]} 31. Bc3 {[%clk 0:01:12]}  Kf8 {[%clk 0:00:39]} 32. b4 {[%clk 0:01:10]}  a4 {[%clk 0:00:31]} 33. e4 {[%clk 0:01:00]}  Rd7 {[%clk 0:00:29]} 34. b5 {[%clk 0:00:57]}  Ke8 {[%clk 0:00:20]} 35. Ke3 {[%clk 0:00:48]}  Ra7 {[%clk 0:00:11]} 36. Bb4 {[%clk 0:00:48]}  Bc7 {[%clk 0:00:11]} 37. h3 {[%clk 0:00:46]}  Kd7 {[%clk 0:00:11]} 38. d5 {[%clk 0:00:44]}  exd5 {[%clk 0:00:10]} 39. exd5 {[%clk 0:00:44]}  Ra8 {[%clk 0:00:11]} 40. f5 {[%clk 0:00:37]}  g5 {[%clk 0:00:05]} 41. Rf6 {[%clk 0:00:35]}  Ke8 {[%clk 0:00:01]} 42. Rh6 {[%clk 0:00:32]}  Bf4+ {[%clk 0:00:01]} 43. Kf3 {[%clk 0:00:31]}  Kd7 {[%clk 0:00:02]} 44. Rxb6 {[%clk 0:00:28]}  a3 {[%clk 0:00:03]} 45. bxa3 {[%clk 0:00:28]}  Rb8 {[%clk 0:00:02]} 46. Rxb8 {[%clk 0:00:25]}  Bxb8 {[%clk 0:00:03]} 47. a4 {[%clk 0:00:25]}  Bd6 {[%clk 0:00:02]} 48. Bxd6 {[%clk 0:00:24]}  Kxd6 {[%clk 0:00:03]} 49. b6 {[%clk 0:00:24]}  Kxd5 {[%clk 0:00:04]} 50. b7 {[%clk 0:00:24]}  Kc6 {[%clk 0:00:04]} 51. b8=Q {[%clk 0:00:25]}  f6 {[%clk 0:00:02]} 52. Qf8 {[%clk 0:00:24]}  g4+ {[%clk 0:00:01]} 53. hxg4 {[%clk 0:00:24]}  hxg4+ {[%clk 0:00:02]} 54. Kxg4 {[%clk 0:00:24]}  Kb6 {[%clk 0:00:02]} 55. Qxf6+ {[%clk 0:00:24]}  Ka5 {[%clk 0:00:03]} 56. Qb2 {[%clk 0:00:24]}  Ka6 {[%clk 0:00:02]} 57. f6 {[%clk 0:00:25]}  Ka7 {[%clk 0:00:03]} 58. f7 {[%clk 0:00:25]}  Ka6 {[%clk 0:00:04]} 59. f8=Q {[%clk 0:00:25]}  Ka7 {[%clk 0:00:04]} 60. Qc5+ {[%clk 0:00:24]}  Ka8 {[%clk 0:00:03]} 61. Qa5# {[%clk 0:00:24]} 1-0


[Site "https://www.chess.com"]

[Event "Titled Tuesday Blitz July 11 Early 2023"]
[White "Pham, Le Thao Nguyen"]
[Black "Topalov, Aleksandar"]
[WhiteFideId "12401226"]
[BlackFideId "925659"]
[WhiteElo "2534"]
[BlackElo "2419"]
[Result "1-0"]
[Round "9"]
[TimeControl "180+2"]
[Date "2023.07.11"]
[WhiteClock "0:00:09"]
[BlackClock "0:00:08"]
[Board "95"]

1. d4 {[%clk 0:02:55]}  Nf6 {[%clk 0:02:59]} 2. c4 {[%clk 0:02:51]}  c5 {[%clk 0:02:58]} 3. Nf3 {[%clk 0:02:30]}  g6 {[%clk 0:02:58]} 4. Nc3 {[%clk 0:02:11]}  Bg7 {[%clk 0:02:56]} 5. d5 {[%clk 0:02:11]}  d6 {[%clk 0:02:56]} 6. h3 {[%clk 0:02:07]}  O-O {[%clk 0:02:55]} 7. e4 {[%clk 0:02:06]}  Na6 {[%clk 0:02:54]} 8. Be2 {[%clk 0:02:03]}  Nc7 {[%clk 0:02:53]} 9. O-O {[%clk 0:02:02]}  e5 {[%clk 0:02:51]} 10. dxe6 {[%clk 0:01:46]}  fxe6 {[%clk 0:02:48]} 11. e5 {[%clk 0:01:43]}  dxe5 {[%clk 0:02:32]} 12. Nxe5 {[%clk 0:01:40]}  Qe7 {[%clk 0:02:28]} 13. Bg5 {[%clk 0:01:32]}  Qe8 {[%clk 0:02:13]} 14. f4 {[%clk 0:01:16]}  Nd7 {[%clk 0:02:13]} 15. Qd6 {[%clk 0:01:08]}  Na6 {[%clk 0:01:40]} 16. a3 {[%clk 0:00:58]}  Rf5 {[%clk 0:01:23]} 17. Ne4 {[%clk 0:00:33]}  Nxe5 {[%clk 0:01:11]} 18. fxe5 {[%clk 0:00:33]}  Bxe5 {[%clk 0:01:08]} 19. Qd2 {[%clk 0:00:15]}  Bd7 {[%clk 0:00:39]} 20. Bg4 {[%clk 0:00:16]}  Kg7 {[%clk 0:00:23]} 21. Bxf5 {[%clk 0:00:15]}  gxf5 {[%clk 0:00:22]} 22. Nd6 {[%clk 0:00:14]}  Qf8 {[%clk 0:00:16]} 23. Nxf5+ {[%clk 0:00:10]}  exf5 {[%clk 0:00:14]} 24. Bh6+ {[%clk 0:00:08]}  Kg6 {[%clk 0:00:11]} 25. Bxf8 {[%clk 0:00:08]}  Bd4+ {[%clk 0:00:12]} 26. Kh1 {[%clk 0:00:07]}  Rxf8 {[%clk 0:00:12]} 27. Rae1 {[%clk 0:00:07]}  Rf7 {[%clk 0:00:11]} 28. Re2 {[%clk 0:00:07]}  Nc7 {[%clk 0:00:11]} 29. Qd3 {[%clk 0:00:07]}  Kg7 {[%clk 0:00:10]} 30. Qg3+ {[%clk 0:00:08]}  Kh8 {[%clk 0:00:09]} 31. Qxc7 {[%clk 0:00:08]}  Be6 {[%clk 0:00:09]} 32. Qd8+ {[%clk 0:00:08]}  Kg7 {[%clk 0:00:08]} 33. Rxe6 {[%clk 0:00:09]} 1-0


[Site "https://www.chess.com"]

[Event "Titled Tuesday Blitz July 11 Early 2023"]
[White "Sidletskyi, Ivan"]
[Black "Szyszylo, Rafal"]
[WhiteFideId "14156024"]
[BlackFideId "1109626"]
[WhiteElo "2529"]
[BlackElo "2411"]
[Result "1-0"]
[Round "9"]
[TimeControl "180+2"]
[Date "2023.07.11"]
[WhiteClock "0:01:10"]
[BlackClock "0:00:28"]
[Board "97"]

1. c4 {[%clk 0:03:00]}  d6 {[%clk 0:03:00]} 2. Nc3 {[%clk 0:03:00]}  g6 {[%clk 0:03:01]} 3. g3 {[%clk 0:03:00]}  Nf6 {[%clk 0:03:01]} 4. Bg2 {[%clk 0:03:00]}  Bg7 {[%clk 0:03:02]} 5. e4 {[%clk 0:03:01]}  O-O {[%clk 0:03:03]} 6. Nge2 {[%clk 0:03:01]}  Nc6 {[%clk 0:03:02]} 7. O-O {[%clk 0:03:01]}  e5 {[%clk 0:03:02]} 8. d3 {[%clk 0:03:01]}  a5 {[%clk 0:03:01]} 9. h3 {[%clk 0:03:01]}  Be6 {[%clk 0:03:01]} 10. Be3 {[%clk 0:02:59]}  Qd7 {[%clk 0:02:58]} 11. Kh2 {[%clk 0:02:58]}  b6 {[%clk 0:02:58]} 12. f4 {[%clk 0:02:58]}  Ne7 {[%clk 0:02:45]} 13. Qd2 {[%clk 0:02:51]}  c5 {[%clk 0:02:44]} 14. g4 {[%clk 0:02:51]}  exf4 {[%clk 0:02:42]} 15. Nxf4 {[%clk 0:02:47]}  h5 {[%clk 0:02:29]} 16. gxh5 {[%clk 0:02:42]}  Nxh5 {[%clk 0:02:28]} 17. Nxh5 {[%clk 0:02:33]}  gxh5 {[%clk 0:02:28]} 18. Bg5 {[%clk 0:02:09]}  Ng6 {[%clk 0:02:28]} 19. Bf6 {[%clk 0:02:08]}  Bxf6 {[%clk 0:01:45]} 20. Rxf6 {[%clk 0:02:09]}  Kg7 {[%clk 0:01:44]} 21. Raf1 {[%clk 0:02:06]}  Rh8 {[%clk 0:01:44]} 22. Qg5 {[%clk 0:01:55]}  Rag8 {[%clk 0:01:26]} 23. Ne2 {[%clk 0:01:48]}  Kf8 {[%clk 0:01:23]} 24. Rxg6 {[%clk 0:01:48]}  Rxg6 {[%clk 0:01:15]} 25. Qxg6 {[%clk 0:01:47]}  Rg8 {[%clk 0:01:12]} 26. Qxh5 {[%clk 0:01:43]}  Qe7 {[%clk 0:01:06]} 27. Nf4 {[%clk 0:01:42]}  Ke8 {[%clk 0:00:59]} 28. e5 {[%clk 0:01:36]}  Rg5 {[%clk 0:00:37]} 29. Qh8+ {[%clk 0:01:26]}  Kd7 {[%clk 0:00:38]} 30. Bb7 {[%clk 0:01:11]}  dxe5 {[%clk 0:00:30]} 31. Qc8+ {[%clk 0:01:10]}  Kd6 {[%clk 0:00:28]} 32. Qc6# {[%clk 0:01:10]} 1-0


[Site "https://www.chess.com"]

[Event "Titled Tuesday Blitz July 11 Early 2023"]
[White "Malyi, Viacheslav"]
[Black "Goldin, Roman"]
[WhiteFideId "14123983"]
[BlackFideId "2803860"]
[WhiteElo "2527"]
[BlackElo "2394"]
[Result "0-1"]
[Round "9"]
[TimeControl "180+2"]
[Date "2023.07.11"]
[WhiteClock "0:01:05"]
[BlackClock "0:00:21"]
[Board "99"]

1. e4 {[%clk 0:03:00]}  Nc6 {[%clk 0:02:58]} 2. Nf3 {[%clk 0:03:00]}  e5 {[%clk 0:02:57]} 3. Bb5 {[%clk 0:03:00]}  a6 {[%clk 0:02:58]} 4. Ba4 {[%clk 0:03:00]}  d6 {[%clk 0:02:57]} 5. d4 {[%clk 0:02:58]}  b5 {[%clk 0:02:56]} 6. Bb3 {[%clk 0:02:56]}  Nxd4 {[%clk 0:02:56]} 7. Nxd4 {[%clk 0:02:52]}  exd4 {[%clk 0:02:56]} 8. c3 {[%clk 0:02:53]}  dxc3 {[%clk 0:02:57]} 9. Nxc3 {[%clk 0:02:49]}  Nf6 {[%clk 0:02:57]} 10. O-O {[%clk 0:02:46]}  Be7 {[%clk 0:02:57]} 11. Bg5 {[%clk 0:02:46]}  O-O {[%clk 0:02:56]} 12. Rc1 {[%clk 0:02:45]}  Bb7 {[%clk 0:02:51]} 13. Re1 {[%clk 0:02:42]}  b4 {[%clk 0:02:42]} 14. Bxf6 {[%clk 0:02:39]}  Bxf6 {[%clk 0:02:41]} 15. Nd5 {[%clk 0:02:40]}  Bxb2 {[%clk 0:02:11]} 16. Rc2 {[%clk 0:02:39]}  Bc3 {[%clk 0:02:05]} 17. Nxc3 {[%clk 0:02:37]}  bxc3 {[%clk 0:02:05]} 18. Rxc3 {[%clk 0:02:38]}  Qe7 {[%clk 0:01:53]} 19. Qc2 {[%clk 0:02:36]}  c5 {[%clk 0:01:53]} 20. f3 {[%clk 0:02:32]}  Rac8 {[%clk 0:01:25]} 21. Rd1 {[%clk 0:02:31]}  Rfd8 {[%clk 0:01:22]} 22. Bc4 {[%clk 0:02:29]}  d5 {[%clk 0:01:13]} 23. Bxd5 {[%clk 0:02:16]}  Bxd5 {[%clk 0:01:12]} 24. exd5 {[%clk 0:02:17]}  Rxd5 {[%clk 0:01:09]} 25. Rc1 {[%clk 0:02:13]}  h5 {[%clk 0:01:03]} 26. h3 {[%clk 0:02:12]}  Qd6 {[%clk 0:01:00]} 27. Rc4 {[%clk 0:02:10]}  g6 {[%clk 0:00:51]} 28. h4 {[%clk 0:02:08]}  Rd2 {[%clk 0:00:50]} 29. Qe4 {[%clk 0:01:49]}  Qg3 {[%clk 0:00:45]} 30. f4 {[%clk 0:01:45]}  Rcd8 {[%clk 0:00:43]} 31. Rf1 {[%clk 0:01:38]}  Rxa2 {[%clk 0:00:33]} 32. Rxc5 {[%clk 0:01:33]}  Rdd2 {[%clk 0:00:23]} 33. Rg5 {[%clk 0:01:05]}  Rxg2+ {[%clk 0:00:22]} 34. Qxg2 {[%clk 0:01:05]}  Rxg2+ {[%clk 0:00:22]} 35. Kh1 {[%clk 0:01:05]}  Rh2# {[%clk 0:00:21]} 0-1


[Site "https://www.chess.com"]

[Event "Titled Tuesday Blitz July 11 Early 2023"]
[White "Yeritsyan, Hayk"]
[Black "Andreassen, Lars"]
[WhiteFideId "13307320"]
[BlackFideId "1504878"]
[WhiteElo "2516"]
[BlackElo "2344"]
[Result "1-0"]
[Round "9"]
[TimeControl "180+2"]
[Date "2023.07.11"]
[WhiteClock "0:00:03"]
[BlackClock "0:00:09"]
[Board "102"]

1. d4 {[%clk 0:02:56]}  d5 {[%clk 0:02:59]} 2. Nf3 {[%clk 0:02:56]}  e6 {[%clk 0:02:58]} 3. e3 {[%clk 0:02:57]}  c5 {[%clk 0:02:58]} 4. Bd3 {[%clk 0:02:57]}  Nc6 {[%clk 0:02:58]} 5. c3 {[%clk 0:02:58]}  Nf6 {[%clk 0:02:56]} 6. Nbd2 {[%clk 0:02:58]}  Bd6 {[%clk 0:02:56]} 7. Qe2 {[%clk 0:02:59]}  Qe7 {[%clk 0:02:56]} 8. O-O {[%clk 0:02:59]}  e5 {[%clk 0:02:56]} 9. dxc5 {[%clk 0:02:59]}  Bxc5 {[%clk 0:02:56]} 10. e4 {[%clk 0:03:00]}  Bg4 {[%clk 0:02:48]} 11. exd5 {[%clk 0:02:55]}  Nxd5 {[%clk 0:02:47]} 12. Ne4 {[%clk 0:02:54]}  Bb6 {[%clk 0:02:33]} 13. Bc4 {[%clk 0:02:45]}  Nf6 {[%clk 0:02:26]} 14. Nxf6+ {[%clk 0:02:36]}  Qxf6 {[%clk 0:02:22]} 15. Bd5 {[%clk 0:02:34]}  Bxf3 {[%clk 0:02:03]} 16. Bxf3 {[%clk 0:02:21]}  O-O {[%clk 0:02:01]} 17. Be3 {[%clk 0:02:17]}  Bxe3 {[%clk 0:01:59]} 18. Qxe3 {[%clk 0:02:17]}  Rfe8 {[%clk 0:01:57]} 19. Rad1 {[%clk 0:02:12]}  a6 {[%clk 0:01:43]} 20. Bd5 {[%clk 0:02:00]}  h6 {[%clk 0:01:24]} 21. Qb6 {[%clk 0:01:52]}  Re7 {[%clk 0:01:19]} 22. Be4 {[%clk 0:01:24]}  Rc8 {[%clk 0:01:17]} 23. Rd2 {[%clk 0:01:17]}  Qf4 {[%clk 0:01:16]} 24. Qe3 {[%clk 0:00:57]}  Qxe3 {[%clk 0:01:15]} 25. fxe3 {[%clk 0:00:58]}  g6 {[%clk 0:01:13]} 26. Bd5 {[%clk 0:00:57]}  Kg7 {[%clk 0:01:13]} 27. e4 {[%clk 0:00:44]}  Rd8 {[%clk 0:01:10]} 28. Rdf2 {[%clk 0:00:38]}  Rdd7 {[%clk 0:01:06]} 29. b4 {[%clk 0:00:36]}  Rc7 {[%clk 0:01:02]} 30. a3 {[%clk 0:00:33]}  Nd8 {[%clk 0:01:02]} 31. c4 {[%clk 0:00:33]}  Ne6 {[%clk 0:01:02]} 32. Bxe6 {[%clk 0:00:29]}  Rxe6 {[%clk 0:01:02]} 33. c5 {[%clk 0:00:29]}  Rd7 {[%clk 0:00:58]} 34. Rc1 {[%clk 0:00:26]}  Rd4 {[%clk 0:00:55]} 35. Re2 {[%clk 0:00:25]}  f5 {[%clk 0:00:50]} 36. exf5 {[%clk 0:00:25]}  gxf5 {[%clk 0:00:51]} 37. Rec2 {[%clk 0:00:20]}  e4 {[%clk 0:00:50]} 38. Kf2 {[%clk 0:00:19]}  f4 {[%clk 0:00:50]} 39. g3 {[%clk 0:00:19]}  e3+ {[%clk 0:00:43]} 40. Kf3 {[%clk 0:00:19]}  fxg3 {[%clk 0:00:42]} 41. hxg3 {[%clk 0:00:19]}  Rd2 {[%clk 0:00:40]} 42. Rxd2 {[%clk 0:00:18]}  exd2 {[%clk 0:00:41]} 43. Rd1 {[%clk 0:00:19]}  b6 {[%clk 0:00:35]} 44. cxb6 {[%clk 0:00:17]}  Rxb6 {[%clk 0:00:34]} 45. Rxd2 {[%clk 0:00:17]}  a5 {[%clk 0:00:34]} 46. Rd4 {[%clk 0:00:10]}  Kf6 {[%clk 0:00:31]} 47. Ke4 {[%clk 0:00:09]}  Re6+ {[%clk 0:00:29]} 48. Kd3 {[%clk 0:00:09]}  axb4 {[%clk 0:00:28]} 49. axb4 {[%clk 0:00:09]}  Ra6 {[%clk 0:00:26]} 50. Kc4 {[%clk 0:00:09]}  Ra3 {[%clk 0:00:25]} 51. b5 {[%clk 0:00:08]}  Rxg3 {[%clk 0:00:25]} 52. b6 {[%clk 0:00:06]}  Rg8 {[%clk 0:00:18]} 53. Kc5 {[%clk 0:00:05]}  h5 {[%clk 0:00:18]} 54. b7 {[%clk 0:00:04]}  Kg5 {[%clk 0:00:18]} 55. Rd1 {[%clk 0:00:04]}  Kf4 {[%clk 0:00:15]} 56. Rf1+ {[%clk 0:00:03]}  Ke3 {[%clk 0:00:14]} 57. Kc6 {[%clk 0:00:03]}  Ke2 {[%clk 0:00:12]} 58. Rf5 {[%clk 0:00:03]}  h4 {[%clk 0:00:12]} 59. Rh5 {[%clk 0:00:03]}  Rg4 {[%clk 0:00:09]} 60. b8=Q {[%clk 0:00:03]} 1-0


[Site "https://www.chess.com"]

[Event "Titled Tuesday Blitz July 11 Early 2023"]
[White "Lehtosaari, Mauri"]
[Black "SicilianPanzer"]
[WhiteFideId "501999"]
[WhiteElo "2507"]
[BlackElo "2250"]
[Result "1-0"]
[Round "9"]
[TimeControl "180+2"]
[Date "2023.07.11"]
[WhiteClock "0:00:05"]
[BlackClock "0:00:00"]
[Board "104"]

1. d4 {[%clk 0:02:56]}  Nf6 {[%clk 0:02:59]} 2. Nf3 {[%clk 0:02:52]}  c5 {[%clk 0:02:59]} 3. e3 {[%clk 0:02:42]}  e6 {[%clk 0:02:43]} 4. Bd3 {[%clk 0:02:40]}  b6 {[%clk 0:02:40]} 5. O-O {[%clk 0:02:35]}  Bb7 {[%clk 0:02:39]} 6. b3 {[%clk 0:02:35]}  cxd4 {[%clk 0:02:38]} 7. Nxd4 {[%clk 0:02:24]}  Nc6 {[%clk 0:02:34]} 8. Bb2 {[%clk 0:02:22]}  Be7 {[%clk 0:02:27]} 9. c4 {[%clk 0:02:18]}  O-O {[%clk 0:02:25]} 10. Nd2 {[%clk 0:01:58]}  d5 {[%clk 0:02:07]} 11. Nxc6 {[%clk 0:01:53]}  Bxc6 {[%clk 0:02:06]} 12. Qe2 {[%clk 0:01:51]}  Qc7 {[%clk 0:01:52]} 13. Rac1 {[%clk 0:01:42]}  a5 {[%clk 0:01:23]} 14. cxd5 {[%clk 0:01:35]}  Nxd5 {[%clk 0:01:22]} 15. Nf3 {[%clk 0:01:17]}  Qb7 {[%clk 0:00:57]} 16. Ne5 {[%clk 0:00:55]}  Be8 {[%clk 0:00:45]} 17. Rfd1 {[%clk 0:00:31]}  f6 {[%clk 0:00:35]} 18. Nc4 {[%clk 0:00:25]}  a4 {[%clk 0:00:32]} 19. Bd4 {[%clk 0:00:21]}  b5 {[%clk 0:00:23]} 20. Nd2 {[%clk 0:00:19]}  e5 {[%clk 0:00:18]} 21. Bc5 {[%clk 0:00:14]}  Rc8 {[%clk 0:00:13]} 22. Bxe7 {[%clk 0:00:13]}  Nxe7 {[%clk 0:00:13]} 23. f3 {[%clk 0:00:07]}  b4 {[%clk 0:00:07]} 24. Ne4 {[%clk 0:00:04]}  Qb6 {[%clk 0:00:03]} 25. Qf2 {[%clk 0:00:03]}  axb3 {[%clk 0:00:03]} 26. axb3 {[%clk 0:00:04]}  Bg6 {[%clk 0:00:03]} 27. Bc4+ {[%clk 0:00:04]}  Kh8 {[%clk 0:00:02]} 28. Nd6 {[%clk 0:00:04]}  Rcd8 {[%clk 0:00:02]} 29. Nb5 {[%clk 0:00:04]}  Qb7 {[%clk 0:00:01]} 30. e4 {[%clk 0:00:03]}  Bf7 {[%clk 0:00:01]} 31. Nd6 {[%clk 0:00:03]}  Rxd6 {[%clk 0:00:01]} 32. Rxd6 {[%clk 0:00:04]}  Bxc4 {[%clk 0:00:01]} 33. bxc4 {[%clk 0:00:05]}  b3 {[%clk 0:00:02]} 34. Rb1 {[%clk 0:00:05]}  Rc8 {[%clk 0:00:01]} 35. Rd3 {[%clk 0:00:04]}  Qb4 {[%clk 0:00:01]} 36. Rdxb3 {[%clk 0:00:03]}  Qxc4 {[%clk 0:00:02]} 37. h3 {[%clk 0:00:04]}  Qe6 {[%clk 0:00:02]} 38. Rb8 {[%clk 0:00:04]}  Ng6 {[%clk 0:00:02]} 39. Rxc8+ {[%clk 0:00:04]}  Qxc8 {[%clk 0:00:03]} 40. Rd1 {[%clk 0:00:04]}  Qg8 {[%clk 0:00:02]} 41. Qd2 {[%clk 0:00:04]}  h5 {[%clk 0:00:02]} 42. Qd8 {[%clk 0:00:05]}  Nf8 {[%clk 0:00:00]} 43. Qe8 {[%clk 0:00:05]} 1-0


[Site "https://www.chess.com"]

[Event "Titled Tuesday Blitz July 11 Early 2023"]
[White "Kev4444444444"]
[Black "Reprintsev, Alexander"]
[BlackFideId "14100541"]
[WhiteElo "2229"]
[BlackElo "2500"]
[Result "0-1"]
[Round "9"]
[TimeControl "180+2"]
[Date "2023.07.11"]
[WhiteClock "0:00:45"]
[BlackClock "0:01:04"]
[Board "106"]

1. e4 {[%clk 0:03:00]}  d5 {[%clk 0:02:58]} 2. exd5 {[%clk 0:03:00]}  Qxd5 {[%clk 0:02:59]} 3. Nc3 {[%clk 0:03:00]}  Qa5 {[%clk 0:02:59]} 4. g3 {[%clk 0:02:56]}  Nc6 {[%clk 0:02:57]} 5. Bg2 {[%clk 0:02:56]}  Nf6 {[%clk 0:02:58]} 6. Nge2 {[%clk 0:02:54]}  Bg4 {[%clk 0:02:58]} 7. h3 {[%clk 0:02:52]}  Bh5 {[%clk 0:02:57]} 8. O-O {[%clk 0:02:48]}  e6 {[%clk 0:02:50]} 9. g4 {[%clk 0:02:43]}  Bg6 {[%clk 0:02:49]} 10. Nf4 {[%clk 0:02:43]}  O-O-O {[%clk 0:02:39]} 11. d3 {[%clk 0:02:34]}  Nd4 {[%clk 0:02:36]} 12. Be3 {[%clk 0:02:30]}  Be7 {[%clk 0:02:08]} 13. g5 {[%clk 0:02:16]}  Ne8 {[%clk 0:02:00]} 14. Nxg6 {[%clk 0:02:01]}  hxg6 {[%clk 0:01:59]} 15. Bxd4 {[%clk 0:01:57]}  Rxd4 {[%clk 0:01:58]} 16. Qf3 {[%clk 0:01:58]}  Nd6 {[%clk 0:01:58]} 17. Qe3 {[%clk 0:01:42]}  Rdh4 {[%clk 0:01:52]} 18. f4 {[%clk 0:01:40]}  Nc4 {[%clk 0:01:32]} 19. Qf3 {[%clk 0:01:25]}  Qb6+ {[%clk 0:01:30]} 20. Kh1 {[%clk 0:01:22]}  Nd2 {[%clk 0:01:30]} 21. Na4 {[%clk 0:01:15]}  Qa6 {[%clk 0:01:25]} 22. Qxb7+ {[%clk 0:01:04]}  Qxb7 {[%clk 0:01:24]} 23. Bxb7+ {[%clk 0:01:05]}  Kxb7 {[%clk 0:01:24]} 24. Rf2 {[%clk 0:01:03]}  Rxh3+ {[%clk 0:01:24]} 25. Kg2 {[%clk 0:01:02]}  Rh2+ {[%clk 0:01:24]} 26. Kg3 {[%clk 0:01:01]}  R8h3+ {[%clk 0:01:22]} 27. Kg4 {[%clk 0:01:01]}  Rh4+ {[%clk 0:01:05]} 28. Kg3 {[%clk 0:01:00]}  Rxf2 {[%clk 0:01:05]} 29. Kxf2 {[%clk 0:00:58]}  Rxf4+ {[%clk 0:01:04]} 30. Ke3 {[%clk 0:00:45]}  Bxg5 {[%clk 0:01:04]} 0-1


[Site "https://www.chess.com"]

[Event "Titled Tuesday Blitz July 11 Early 2023"]
[White "Girya, Olga"]
[Black "a-z30"]
[WhiteFideId "4195752"]
[WhiteElo "2551"]
[BlackElo "2393"]
[Result "0-1"]
[Round "9"]
[TimeControl "180+2"]
[Date "2023.07.11"]
[WhiteClock "0:00:00"]
[BlackClock "0:00:06"]
[Board "110"]

1. d4 {[%clk 0:03:00]}  Nf6 {[%clk 0:02:59]} 2. Nf3 {[%clk 0:03:01]}  e6 {[%clk 0:03:00]} 3. c4 {[%clk 0:03:01]}  c5 {[%clk 0:02:59]} 4. d5 {[%clk 0:03:00]}  d6 {[%clk 0:02:59]} 5. Nc3 {[%clk 0:02:59]}  g6 {[%clk 0:02:59]} 6. e4 {[%clk 0:02:58]}  Bg7 {[%clk 0:02:59]} 7. Bd3 {[%clk 0:02:55]}  exd5 {[%clk 0:02:55]} 8. exd5 {[%clk 0:02:50]}  Bg4 {[%clk 0:02:54]} 9. h3 {[%clk 0:02:48]}  Bxf3 {[%clk 0:02:53]} 10. Qxf3 {[%clk 0:02:49]}  O-O {[%clk 0:02:51]} 11. O-O {[%clk 0:02:48]}  Nbd7 {[%clk 0:02:51]} 12. Bf4 {[%clk 0:02:48]}  Qb6 {[%clk 0:01:59]} 13. Rab1 {[%clk 0:02:02]}  Rfe8 {[%clk 0:01:55]} 14. Qd1 {[%clk 0:01:53]}  Nh5 {[%clk 0:01:47]} 15. Bh2 {[%clk 0:01:52]}  Be5 {[%clk 0:01:40]} 16. f4 {[%clk 0:01:48]}  Bd4+ {[%clk 0:01:37]} 17. Kh1 {[%clk 0:01:48]}  Re3 {[%clk 0:01:29]} 18. Nb5 {[%clk 0:01:30]}  Rae8 {[%clk 0:01:19]} 19. Qd2 {[%clk 0:01:22]}  a6 {[%clk 0:00:50]} 20. Nxd4 {[%clk 0:01:21]}  cxd4 {[%clk 0:00:51]} 21. b4 {[%clk 0:01:21]}  Ng3+ {[%clk 0:00:42]} 22. Bxg3 {[%clk 0:01:21]}  Rxg3 {[%clk 0:00:43]} 23. f5 {[%clk 0:01:04]}  Ree3 {[%clk 0:00:23]} 24. Rb3 {[%clk 0:00:44]}  Ne5 {[%clk 0:00:16]} 25. Be2 {[%clk 0:00:11]}  d3 {[%clk 0:00:15]} 26. Bd1 {[%clk 0:00:08]}  Qd4 {[%clk 0:00:15]} 27. Kh2 {[%clk 0:00:01]}  Nxc4 {[%clk 0:00:14]} 28. Qc3 {[%clk 0:00:01]}  Qxc3 {[%clk 0:00:12]} 29. Rxc3 {[%clk 0:00:01]}  b5 {[%clk 0:00:10]} 30. f6 {[%clk 0:00:01]}  d2 {[%clk 0:00:08]} 31. Rc2 {[%clk 0:00:02]}  Rd3 {[%clk 0:00:07]} 32. Be2 {[%clk 0:00:00]}  Rc3 {[%clk 0:00:06]} 0-1


[Site "https://www.chess.com"]